fUSD/lending_fUSD_20251227
["ID","MTS","AMOUNT","RATE_DAILY","PERIOD"]
[399875342,1766795440818,-500.0,0.00014921,2]
[399875343,1766795440828,-1000.0,0.0001497,2]
[399875344,1766795440839,-3174.66670026,0.00014978,2]
[399875345,1766795440849,-5014.92,0.00014999,2]
[399875346,1766795440859,-2041.96320855,0.00015,2]
[399875347,1766795440869,-7949.15298841,0.00015,2]
[399875348,1766795440879,-21370.00222654,0.00015,2]
[399875349,1766795440889,-1155.4547331,0.00015,2]
[399875350,1766795440899,-33603.71108173,0.00015,2]
[399875351,1766795440913,-10088.50240882,0.00015023,2]
[399875352,1766795440923,-476.7,0.00015068,2]
[399875353,1766795440933,-162.0,0.00015088,2]
[399875354,1766795440943,-166.67,0.00015118,2]
[399875355,1766795440953,-433.0,0.00015127,2]
[399875356,1766795440963,-2351.0,0.00015166,2]
[399875357,1766795440974,-250.0,0.0001521,2]
[399875358,1766795440985,-150.0,0.00015288,2]
[399875359,1766795440995,-150.0,0.00015288,2]
[399875360,1766795441006,-230.12358953,0.00015288,2]
[399875361,1766795441016,-150.0,0.00015288,2]
[399875362,1766795441026,-150.00000001,0.00015288,2]
[399875363,1766795441036,-150.00000001,0.00015288,2]
[399875364,1766795441046,-150.00000001,0.00015288,2]
[399875365,1766795441057,-1517.64,0.000153,2]
[399875366,1766795441067,-506.17215584,0.000154,2]
[399875367,1766795441077,-151.0,0.00015458,2]
[399875368,1766795441088,-3174.66670026,0.00015459,2]
[399875369,1766795441098,-1500.0,0.00015468,2]
[399875370,1766795441119,-151.0,0.00015478,2]
[399875371,1766795441132,-154.62,0.00015478,2]
[399875372,1766795441143,-151.0,0.0001548,2]
[399875373,1766795441154,-10088.50240882,0.00015492,2]
[399875374,1766795441164,-500.0,0.00015534,2]
[399875375,1766795441175,-151.0,0.00015537,2]
[399875376,1766795441185,-4757.34655474,0.00015556,2]
[399875377,1766795441196,-432.0,0.00015556,2]
[399875378,1766795441206,-1263.0,0.00015556,2]
[399875379,1766795441216,-1198.0,0.00015556,2]
[399875380,1766795441226,-912.0,0.00015556,2]
[399875381,1766795441236,-3458.0,0.00015556,2]
[399875382,1766795441247,-4808.0,0.00015556,2]
[399875383,1766795441257,-612.0,0.00015556,2]
[399875384,1766795441267,-236.33089102,0.00015916,2]
[399875385,1766795441277,-3174.66670026,0.00015939,2]
[399875386,1766795441287,-10088.50240882,0.00015961,2]
[399875387,1766795441297,-151.55934747,0.00015969,2]
[399875388,1766795441307,-500.0,0.00015973,2]
[399875389,1766795441316,-500.0,0.00015973,2]
[399875390,1766795441327,-500.0,0.00015973,2]
[399875391,1766795441337,-500.89276948,0.00015973,2]
[399875392,1766795441347,-500.0,0.00015973,2]
[399875393,1766795441357,-500.0,0.00015973,2]
[399875394,1766795441367,-500.0,0.00015973,2]
[399875395,1766795441377,-534.79304432,0.00015973,2]
[399875396,1766795441386,-500.0,0.00015973,2]
[399875397,1766795441396,-500.0,0.00015973,2]
[399875398,1766795441406,-500.91892275,0.00015973,2]
[399875399,1766795441416,-500.0,0.00015973,2]
[399875400,1766795441426,-500.0,0.00015973,2]
[399875401,1766795441436,-500.0,0.00015973,2]
[399875402,1766795441446,-500.0,0.00015973,2]
[399875403,1766795441456,-500.0,0.00015973,2]
[399875404,1766795441471,-500.0,0.00015973,2]
[399875405,1766795441483,-500.0,0.00015973,2]
[399875406,1766795441493,-500.0,0.00015973,2]
[399875407,1766795441503,-500.0,0.00015973,2]
[399875408,1766795441514,-500.0,0.00015973,2]
[399875409,1766795441525,-500.0,0.00015973,2]
[399875410,1766795441535,-500.0,0.00015973,2]
[399875411,1766795441546,-501.32987729,0.00015973,2]
[399875412,1766795441556,-500.76503002,0.00015973,2]
[399875413,1766795441567,-500.0,0.00015973,2]
[399875414,1766795441577,-500.0,0.00015973,2]
[399875415,1766795441587,-500.0,0.00015973,2]
[399875416,1766795441598,-500.0,0.00015973,2]
[399875417,1766795441608,-500.0,0.00015973,2]
[399875418,1766795441618,-500.0,0.00015973,2]
[399875419,1766795441628,-500.0,0.00015973,2]
[399875420,1766795441638,-500.0,0.00015973,2]
[399875421,1766795441647,-500.0,0.00015973,2]
[399875422,1766795441658,-500.0,0.00015973,2]
[399875423,1766795441668,-500.0,0.00015973,2]
[399875424,1766795441678,-500.0,0.00015973,2]
[399875425,1766795441688,-500.0,0.00015973,2]
[399875426,1766795441698,-500.0,0.00015973,2]
[399875427,1766795441708,-500.0,0.00015973,2]
[399875428,1766795441718,-500.0,0.00015973,2]
[399875429,1766795441727,-500.0,0.00015973,2]
[399875430,1766795441738,-412.67,0.00015973,2]
[399875431,1766795441747,-266.56101636,0.00015999,2]
[399875432,1766795441757,-500.0,0.00015999,2]
[399875433,1766795441767,-501.64706302,0.00015999,2]
[399875434,1766795441777,-500.0,0.00015999,2]
[399875435,1766795441788,-591813.825788,0.00016,4]
[399875436,1766795441798,-731.69372668,0.00016016,2]
[399875437,1766795441808,-200.0,0.00016029,2]
[399875438,1766795441818,-501.02283993,0.00016059,2]
[399875439,1766795441832,-500.0,0.00016149,2]
[399875440,1766795441842,-500.0,0.00016149,2]
[399875441,1766795441853,-250.0,0.00016149,2]
[399875442,1766795441863,-500.0,0.00016149,2]
[399875443,1766795441873,-500.0,0.00016149,2]
[399875444,1766795441884,-500.0,0.00016149,2]
[399875445,1766795441894,-250.0,0.00016149,2]
[399875446,1766795441905,-500.0,0.00016149,2]
[399875447,1766795441915,-500.0,0.00016149,2]
[399875448,1766795441926,-500.0,0.00016149,2]
[399875449,1766795441936,-250.0,0.00016149,2]
[399875450,1766795441946,-500.0,0.00016149,2]
[399875451,1766795441957,-500.0,0.00016149,2]
[399875452,1766795441967,-500.0,0.00016149,2]
[399875453,1766795441976,-250.0,0.00016149,2]
[399875454,1766795441987,-500.0,0.00016149,2]
[399875455,1766795441996,-500.0,0.00016149,2]
[399875456,1766795442007,-500.0,0.00016149,2]
[399875457,1766795442017,-250.0,0.00016149,2]
[399875458,1766795442027,-500.0,0.00016149,2]
[399875459,1766795442036,-250.0,0.00016149,2]
[399875460,1766795442047,-454.88526239,0.00016149,2]
[399875461,1766795442057,-500.0,0.00016149,2]
[399875462,1766795442067,-250.0,0.00016149,2]
[399875463,1766795442077,-500.0,0.00016149,2]
[399875464,1766795442087,-250.0,0.00016149,2]
[399875465,1766795442097,-500.0,0.00016149,2]
[399875466,1766795442107,-500.0,0.00016149,2]
[399875467,1766795442117,-250.0,0.00016149,2]
[399875468,1766795442127,-500.0,0.00016149,2]
[399875469,1766795442137,-250.0,0.00016149,2]
[399875470,1766795442147,-500.0,0.00016149,2]
[399875471,1766795442159,-250.0,0.00016149,2]
[399875472,1766795442169,-500.0,0.00016149,2]
[399875473,1766795442179,-250.0,0.00016149,2]
[399875474,1766795442193,-500.0,0.00016149,2]
[399875475,1766795442203,-250.0,0.00016149,2]
[399875476,1766795442213,-500.0,0.00016149,2]
[399875477,1766795442223,-250.0,0.00016149,2]
[399875478,1766795442233,-500.0,0.00016149,2]
[399875479,1766795442243,-496.47127164,0.00016149,2]
[399875480,1766795442254,-500.0,0.00016149,2]
[399875481,1766795442264,-250.0,0.00016149,2]
[399875482,1766795442274,-500.0,0.00016149,2]
[399875483,1766795442284,-250.0,0.00016149,2]
[399875484,1766795442294,-250.0,0.00016149,2]
[399875485,1766795442304,-250.0,0.00016149,2]
[399875486,1766795442315,-500.0,0.00016149,2]
[399875487,1766795442324,-250.0,0.00016149,2]
[399875488,1766795442334,-250.0,0.00016149,2]
[399875489,1766795442344,-250.0,0.00016149,2]
[399875490,1766795442354,-250.0,0.00016149,2]
[399875491,1766795442364,-250.0,0.00016149,2]
[399875492,1766795442374,-578.20924308,0.00016149,2]
[399875493,1766795442384,-396.27846837,0.00016149,2]
[399875494,1766795442394,-500.0,0.00016149,2]
[399875495,1766795442404,-500.0,0.00016149,2]
[399875496,1766795442414,-500.0,0.00016149,2]
[399875497,1766795442423,-322.6107,0.00016149,2]
[399875498,1766795442433,-500.0,0.00016149,2]
[399875499,1766795442443,-500.0,0.00016149,2]
[399875500,1766795442454,-500.0,0.00016149,2]
[399875501,1766795442464,-500.0,0.00016149,2]
[399875502,1766795442475,-250.0,0.00016149,2]
[399875503,1766795442484,-500.0,0.00016149,2]
[399875504,1766795442494,-250.0,0.00016149,2]
[399875505,1766795442504,-500.0,0.00016149,2]
[399875506,1766795442514,-250.0,0.00016149,2]
[399875507,1766795442524,-500.0,0.00016149,2]
[399875508,1766795442534,-250.0,0.00016149,2]
[399875509,1766795442548,-500.0,0.00016149,2]
[399875510,1766795442558,-250.0,0.00016149,2]
[399875511,1766795442568,-250.0,0.00016149,2]
[399875512,1766795442578,-250.0,0.00016149,2]
[399875513,1766795442588,-250.0,0.00016149,2]
[399875514,1766795442598,-250.0,0.00016149,2]
[399875515,1766795442608,-261.58626416,0.00016149,2]
[399875516,1766795442618,-200.0,0.00016149,2]
[399875517,1766795442628,-207.4,0.00016149,2]
[399875518,1766795442638,-215.0738,0.00016149,2]
[399875519,1766795442647,-223.0315306,0.00016149,2]
[399875520,1766795442657,-231.28369723,0.00016149,2]
[399875521,1766795442667,-239.84119403,0.00016149,2]
[399875522,1766795442677,-248.71531821,0.00016149,2]
[399875523,1766795442688,-257.91778498,0.00016149,2]
[399875524,1766795442698,-267.46074303,0.00016149,2]
[399875525,1766795442708,-377.36930401,0.00016149,2]
[399875526,1766795442718,-5000.00430086,0.000162,5]
[399875527,1766795442728,-150.0,0.00016219,2]
[399875528,1766795442742,-297.9094407,0.00016219,2]
[399875529,1766795442752,-412.67,0.00016247,2]
[399875530,1766795442765,-1000.0,0.0001637,2]
[399875531,1766795442775,-236.33089102,0.00016401,2]
[399875532,1766795442785,-3174.66670026,0.0001642,2]
[399875533,1766795442795,-10088.50240882,0.00016431,2]
[399875534,1766795442805,-643.0,0.00016435,2]
[399875535,1766795442815,-710.7,0.00016438,2]
[399875536,1766795442825,-500.0,0.00016438,2]
[399875537,1766795442835,-500.0,0.00016438,2]
[399875538,1766795442844,-500.0,0.00016438,2]
[399875539,1766795442854,-500.0,0.00016438,2]
[399875540,1766795442865,-500.0,0.00016438,2]
[399875541,1766795442876,-150.0,0.00016438,2]
[399875542,1766795442886,-476.7,0.00016438,2]
[399875544,1766795442896,-150.0,0.00016438,2]
[399875546,1766795442912,-150.0,0.00016438,2]
[399875547,1766795442922,-164.56,0.0001644,2]
[399875548,1766795442932,-164.56,0.0001644,2]
[399875549,1766795442944,-164.56,0.0001644,2]
[399875550,1766795442956,-164.56,0.0001644,2]
[399875551,1766795442967,-150.0,0.00016465,2]
[399875552,1766795442976,-203.08372064,0.00016493,2]
[399875553,1766795442986,-500.47493987,0.00016521,2]
[399875554,1766795442996,-1000.0,0.00016521,2]
[399875555,1766795443006,-501.09853648,0.00016521,2]
[399875556,1766795443016,-501.52379786,0.00016521,2]
[399875557,1766795443026,-1000.0,0.00016521,2]
[399875558,1766795443036,-299.72437888,0.00016521,2]
[399875559,1766795443046,-500.0,0.00016521,2]
[399875560,1766795443055,-501.27464861,0.00016521,2]
[399875561,1766795443065,-501.54516283,0.00016521,2]
[399875562,1766795443075,-500.0,0.00016521,2]
[399875563,1766795443084,-501.64987831,0.00016521,2]
[399875564,1766795443399,-500.0,0.00016521,2]
[399875565,1766795443410,-501.47129167,0.00016521,2]
[399875566,1766795443421,-501.62552641,0.00016521,2]
[399875567,1766795443431,-502.36597635,0.00016521,2]
[399875568,1766795443440,-502.51080525,0.00016521,2]
[399875569,1766795443450,-1000.0,0.00016521,2]
[399875570,1766795443459,-500.0,0.00016521,2]
[399875571,1766795443469,-501.55278646,0.00016521,2]
[399875572,1766795443479,-582.06225981,0.00016521,2]
[399875573,1766795443490,-501.87578424,0.00016521,2]
[399875574,1766795443501,-502.47387917,0.00016521,2]
[399875575,1766795443511,-500.56640206,0.00016521,2]
[399875576,1766795443521,-501.68433486,0.00016521,2]
[399875577,1766795443531,-1000.0,0.00016521,2]
[399875578,1766795443540,-500.64440302,0.00016521,2]
[399875579,1766795443550,-501.59555949,0.00016521,2]
[399875580,1766795443560,-500.63339465,0.00016521,2]
[399875581,1766795443571,-1000.0,0.00016521,2]
[399875582,1766795443580,-502.41625795,0.00016521,2]
[399875583,1766795443590,-1000.0,0.00016521,2]
[399875584,1766795443605,-501.13015343,0.00016521,2]
[399875585,1766795443615,-502.12022851,0.00016521,2]
[399875586,1766795443626,-501.50162149,0.00016521,2]
[399875587,1766795443636,-501.11243269,0.00016521,2]
[399875588,1766795443646,-502.60700884,0.00016521,2]
[399875589,1766795443656,-501.45598765,0.00016521,2]
[399875590,1766795443666,-412.67,0.00016521,2]
[399875591,1766795443676,-653.33262019,0.0001666,2]
[399875592,1766795443687,-3292.0,0.00016682,2]
[399875593,1766795443697,-203.59064575,0.00016724,2]
[399875594,1766795443706,-412.67,0.00016795,2]
[399875595,1766795443716,-1113.30940197,0.0001683,2]
[399875596,1766795443727,-200.0,0.00016863,2]
[399875597,1766795443736,-200.0,0.00016864,2]
[399875598,1766795443747,-236.33089102,0.00016886,2]
[399875599,1766795443757,-10088.50240882,0.000169,2]
[399875600,1766795443767,-3174.66670026,0.000169,2]
[399875601,1766795443777,-194.15320872,0.000169,2]
[399875602,1766795443787,-228.55347716,0.000169,2]
[399875603,1766795443798,-3409.0,0.000169,2]
[399875604,1766795443809,-500.0,0.0001697,2]
[399875605,1766795443819,-500.0,0.0001697,2]
[399875606,1766795443830,-500.0,0.0001697,2]
[399875607,1766795443840,-802.46796525,0.0001697,2]
[399875608,1766795443851,-1000.0,0.0001697,2]
[399875609,1766795443860,-1000.0,0.0001697,2]
[399875610,1766795443871,-1000.0,0.0001697,2]
[399875611,1766795443881,-1000.0,0.0001697,2]
[399875612,1766795443897,-1000.0,0.0001697,2]
[399875613,1766795443918,-150.12296232,0.00016973,2]
[399875614,1766795443939,-163.53521313,0.00016973,2]
[399875615,1766795443951,-150.0,0.00016973,2]
[399875616,1766795443961,-150.0,0.00016973,2]
[399875617,1766795443971,-164.56,0.00016976,2]
[399875618,1766795443981,-164.56,0.00016976,2]
[399875619,1766795443996,-500.0,0.00016986,2]
[399875620,1766795444006,-327594.04,0.00016986,2]
[399875621,1766795444017,-150.0,0.00016986,2]
[399875622,1766795444027,-150.00000001,0.00016986,2]
[399875623,1766795444036,-150.00000045,0.00016986,2]
[399875624,1766795444047,-164.56,0.0001699,2]
[399875625,1766795444057,-164.56,0.0001699,2]
[399875626,1766795444066,-164.56,0.0001699,2]
[399875627,1766795444077,-300.0,0.00016996,2]
[399875628,1766795444087,-300.0,0.00016996,2]
[399875629,1766795444097,-300.0,0.00016996,2]
[399875630,1766795444108,-306.55157077,0.00016996,2]
[399875631,1766795444118,-500.0,0.00016996,2]
[399875632,1766795444128,-90961.2926653,0.00016997,2]
[399875633,1766795444139,-10600.5655201,0.00016997,2]
[399875634,1766795444149,-1004.126,0.00016999,2]
[399875635,1766795444159,-307.66104653,0.00016999,2]
[399875636,1766795444169,-300.0,0.00016999,2]
[399875637,1766795444179,-300.0,0.00016999,2]
[399875638,1766795444190,-300.0,0.00016999,2]
[399875639,1766795444200,-500.0,0.00016999,2]
[399875640,1766795444210,-500.0,0.00016999,2]
[399875641,1766795444220,-500.0,0.00016999,2]
[399875642,1766795444230,-500.0,0.00016999,2]
[399875644,1766795444241,-2216.98994142,0.00016999,2]
[399875645,1766795444251,-906036.29232136,0.00017,2]
[399875650,1766795446128,-817.05,0.00012534,2]
[399875651,1766795446233,-2726.21303154,0.00012534,2]
[399875652,1766795446245,-1579.11612457,0.00012534,2]
[399875653,1766795446340,-1829.34553817,0.00012534,2]
[399875654,1766795446448,-1065.32192759,0.00012534,2]
[399875664,1766796233057,-476.43839649,0.00012283,2]
[399875688,1766796632099,-288.63760351,0.00012283,2]
[399875689,1766796632110,-261.8394808,0.00012332,2]
[399875690,1766796632120,-236.33089102,0.00012333,2]
[399875691,1766796632130,-300.0,0.00012431,2]
[399875692,1766796632139,-300.0,0.00012431,2]
[399875693,1766796632149,-552.70095214,0.00012431,2]
[399875694,1766796632203,-446.88,0.00012431,2]
[399875695,1766796632215,-200.41904786,0.00012431,2]
[399875696,1766796632226,-411.65095214,0.00012432,2]
[399875697,1766796632237,-88.34904786,0.00012432,2]
[399875698,1766796632247,-398.52198214,0.00012432,2]
[399875699,1766796632263,-187.2401137,0.00012432,2]
[399875700,1766796632273,-500.0,0.00012432,2]
[399875701,1766796632287,-385.34617293,0.00012432,2]
[399875702,1766796632298,-500.0,0.00012432,2]
[399875703,1766796632307,-500.0,0.00012432,2]
[399875704,1766796632318,-259.84154615,0.00012432,2]
[399875705,1766796632328,-500.0,0.00012432,2]
[399875706,1766796632338,-500.0,0.00012432,2]
[399875707,1766796632350,-500.0,0.00012432,2]
[399875708,1766796632361,-500.0,0.00012432,2]
[399875709,1766796632371,-140.29128219,0.00012432,2]
[399875710,1766796632384,-359.70871781,0.00012432,2]
[399875712,1766796632394,-500.0,0.00012432,2]
[399875714,1766796632403,-500.0,0.00012432,2]
[399875716,1766796632413,-500.0,0.00012432,2]
[399875718,1766796632423,-500.0,0.00012432,2]
[399875720,1766796632434,-497.37448336,0.00012432,2]
[399875722,1766796632443,-500.0,0.00012432,2]
[399875724,1766796632454,-500.0,0.00012432,2]
[399875726,1766796632464,-500.0,0.00012432,2]
[399875728,1766796632474,-500.0,0.00012432,2]
[399875729,1766796632485,-420.15645923,0.00012432,2]
[399875730,1766796632494,-500.0,0.00012432,2]
[399875732,1766796632504,-500.0,0.00012432,2]
[399875734,1766796632514,-500.0,0.00012432,2]
[399875735,1766796632524,-500.0,0.00012432,2]
[399875736,1766796632535,-500.0,0.00012432,2]
[399875737,1766796632545,-500.0,0.00012432,2]
[399875738,1766796632555,-500.0,0.00012432,2]
[399875739,1766796632565,-500.0,0.00012432,2]
[399875740,1766796632575,-500.0,0.00012432,2]
[399875741,1766796632585,-500.0,0.00012432,2]
[399875742,1766796632595,-500.0,0.00012432,2]
[399875743,1766796632605,-500.0,0.00012432,2]
[399875744,1766796632614,-500.0,0.00012432,2]
[399875745,1766796632625,-500.0,0.00012432,2]
[399875746,1766796632635,-500.0,0.00012432,2]
[399875747,1766796632645,-500.0,0.00012432,2]
[399875748,1766796632655,-577.81769494,0.00012432,2]
[399875749,1766796632665,-577.81769494,0.00012432,2]
[399875750,1766796632675,-577.81769494,0.00012432,2]
[399875751,1766796632685,-577.81769494,0.00012432,2]
[399875752,1766796632695,-577.81769494,0.00012432,2]
[399875753,1766796632706,-577.81769494,0.00012432,2]
[399875754,1766796632716,-577.81769494,0.00012432,2]
[399875755,1766796632727,-577.81769494,0.00012432,2]
[399875756,1766796632736,-577.81769494,0.00012432,2]
[399875757,1766796632746,-577.81769494,0.00012432,2]
[399875758,1766796632756,-577.81769494,0.00012432,2]
[399875759,1766796632766,-577.81769494,0.00012432,2]
[399875760,1766796632776,-577.81769494,0.00012432,2]
[399875761,1766796632786,-577.81769494,0.00012432,2]
[399875762,1766796632796,-577.81769494,0.00012432,2]
[399875763,1766796632806,-577.81769494,0.00012432,2]
[399875764,1766796632816,-577.81769494,0.00012432,2]
[399875765,1766796632826,-577.81769494,0.00012432,2]
[399875766,1766796632836,-577.81769494,0.00012432,2]
[399875767,1766796632846,-577.81769494,0.00012432,2]
[399875768,1766796632856,-577.81769494,0.00012432,2]
[399875769,1766796632866,-577.81769494,0.00012432,2]
[399875770,1766796632876,-577.81769494,0.00012432,2]
[399875771,1766796632886,-577.81769494,0.00012432,2]
[399875772,1766796632896,-577.81769494,0.00012432,2]
[399875773,1766796632905,-577.81769494,0.00012432,2]
[399875774,1766796632915,-577.81769494,0.00012432,2]
[399875775,1766796632925,-577.81769494,0.00012432,2]
[399875776,1766796632934,-577.81769494,0.00012432,2]
[399875777,1766796632945,-577.81769494,0.00012432,2]
[399875778,1766796632955,-577.81769494,0.00012432,2]
[399875779,1766796632965,-577.81769494,0.00012432,2]
[399875780,1766796632975,-577.81769494,0.00012432,2]
[399875781,1766796632985,-577.81769494,0.00012432,2]
[399875782,1766796632996,-577.81769494,0.00012432,2]
[399875783,1766796633006,-577.81769494,0.00012432,2]
[399875784,1766796633016,-577.81769494,0.00012432,2]
[399875785,1766796633025,-577.81769494,0.00012432,2]
[399875786,1766796633034,-577.81769494,0.00012432,2]
[399875787,1766796633044,-577.81769494,0.00012432,2]
[399875788,1766796633055,-577.81769494,0.00012432,2]
[399875789,1766796633065,-569.56315644,0.00012432,2]
[399875790,1766796633075,-569.56315644,0.00012432,2]
[399875791,1766796633085,-569.56315644,0.00012432,2]
[399875792,1766796633096,-569.56315644,0.00012432,2]
[399875793,1766796633106,-569.56315644,0.00012432,2]
[399875794,1766796633116,-569.56315644,0.00012432,2]
[399875795,1766796633126,-569.56315644,0.00012432,2]
[399875796,1766796633137,-569.56315644,0.00012432,2]
[399875797,1766796633148,-569.56315644,0.00012432,2]
[399875798,1766796633158,-569.56315644,0.00012432,2]
[399875799,1766796633169,-569.56315644,0.00012432,2]
[399875800,1766796633180,-569.56315644,0.00012432,2]
[399875801,1766796633190,-569.56315644,0.00012432,2]
[399875802,1766796633200,-569.56315644,0.00012432,2]
[399875803,1766796633210,-569.56315644,0.00012432,2]
[399875804,1766796633219,-569.56315644,0.00012432,2]
[399875805,1766796633229,-569.56315644,0.00012432,2]
[399875806,1766796633239,-569.56315644,0.00012432,2]
[399875807,1766796633249,-569.56315644,0.00012432,2]
[399875808,1766796633263,-569.56315644,0.00012432,2]
[399875809,1766796633273,-569.56315644,0.00012432,2]
[399875810,1766796633286,-150.0,0.00012432,2]
[399875811,1766796633296,-412.67,0.00012432,2]
[399875812,1766796633307,-2443.45183868,0.00012433,2]
[399875813,1766796633321,-1578.43983453,0.00012433,2]
[399875814,1766796633337,-2097.0,0.00012433,2]
[399875815,1766796633348,-1546.56292351,0.00012433,2]
[399875816,1766796638289,-232.82804222,0.00012334,2]
[399875817,1766796638299,-37513.18392684,0.00012433,2]
[399875818,1766796638311,-289080.59120963,0.00012433,2]
[399875819,1766796638444,-581.39280019,0.00012433,2]
[399875822,1766796638457,-1266.01117204,0.00012433,2]
[399875829,1766796640222,-883.50727029,0.00012433,2]
[399875830,1766796640281,-15941.23605073,0.00012433,2]
[399875831,1766796640333,-772.03269575,0.00012433,2]
[399875832,1766796640345,-957.9102133,0.00012433,2]
[399875833,1766796640359,-1911.76033256,0.00012433,2]
[399875834,1766796640646,-643426.91973195,0.00012433,2]
[399875836,1766796640656,-1000.0,0.00012434,2]
[399875837,1766796640665,-201.72494754,0.00012507,2]
[399875838,1766796640675,-7061.95168621,0.00012507,2]
[399875839,1766796640684,-412.67,0.00012705,2]
[399875840,1766796640694,-500.0,0.00012705,2]
[399875841,1766796640703,-9999.99,0.00012893,2]
[399875842,1766796640712,-150.99,0.00012893,2]
[399875843,1766796640722,-299.99,0.00012893,2]
[399875844,1766796640731,-5278.37,0.00012893,2]
[399875845,1766796640740,-294.76,0.00012893,2]
[399875846,1766796640750,-9999.99,0.00012893,2]
[399875847,1766796640759,-14850.43,0.00012893,2]
[399875848,1766796640768,-9999.99,0.00012893,2]
[399875849,1766796640777,-412.67,0.00012979,2]
[399875850,1766796640786,-500.0,0.00012979,2]
[399875851,1766796640796,-2222.26669018,0.00012995,2]
[399875852,1766796640805,-7061.95168617,0.00012995,2]
[399875853,1766796640816,-300.1959228,0.00013252,2]
[399875854,1766796640825,-412.67,0.00013253,2]
[399875855,1766796640835,-500.0,0.00013253,2]
[399875856,1766796640844,-150.0,0.00013315,2]
[399875857,1766796640854,-2222.26669018,0.00013483,2]
[399875858,1766796640863,-7061.95168617,0.00013483,2]
[399875859,1766796640872,-255.0,0.00013526,2]
[399875860,1766796640882,-412.71,0.00013527,2]
[399875861,1766796640891,-594.89493419,0.00013527,2]
[399875862,1766796640900,-420.0,0.0001364,2]
[399875863,1766796640909,-420.0,0.0001364,2]
[399875864,1766796640919,-1000.0,0.00013647,2]
[399875865,1766796640928,-1680.0,0.00013674,2]
[399875866,1766796640938,-532.85,0.00013699,2]
[399875867,1766796640947,-500.0,0.00013699,2]
[399875868,1766796640956,-371.64082973,0.00013699,2]
[399875869,1766796640966,-200.0,0.00013866,2]
[399875870,1766796640976,-2222.26669018,0.00013971,2]
[399875871,1766796640985,-7061.95168617,0.00013971,2]
[399875872,1766796640995,-500.0,0.00014018,2]
[399875873,1766796641005,-226.45427209,0.00014069,2]
[399875874,1766796641014,-169.42,0.00014134,2]
[399875875,1766796641023,-1475.4671258,0.0001417,2]
[399875876,1766796641033,-1000.0,0.0001437,2]
[399875877,1766796641042,-500.0,0.00014373,2]
[399875878,1766796641052,-339.47657605,0.00014373,2]
[399875879,1766796641061,-276.52041223,0.00014373,2]
[399875880,1766796641070,-500.0,0.00014373,2]
[399875881,1766796641084,-500.0,0.00014373,2]
[399875882,1766796641094,-2222.26669018,0.00014459,2]
[399875883,1766796641104,-7061.95168617,0.00014459,2]
[399875884,1766796641114,-236.33089102,0.00014602,2]
[399875885,1766796641124,-156.58,0.00014637,2]
[399875886,1766796641134,-1000.0,0.0001467,2]
[399875887,1766796641143,-433.0,0.00014719,2]
[399875888,1766796641153,-502.55443721,0.00014921,2]
[399875889,1766796641163,-1000.0,0.00014921,2]
[399875890,1766796641172,-500.0,0.00014921,2]
[399875891,1766796641183,-2222.26669018,0.00014948,2]
[399875892,1766796641193,-7061.95168617,0.00014948,2]
[399875893,1766796641203,-162.0,0.00014967,2]
[399875894,1766796641213,-552.0,0.00014967,2]
[399875895,1766796641223,-1000.0,0.0001497,2]
[399875896,1766796641233,-2351.0,0.00015041,2]
[399875897,1766796641243,-150.0,0.00015288,2]
[399875898,1766796641253,-150.0,0.00015288,2]
[399875899,1766796641263,-230.12358953,0.00015288,2]
[399875900,1766796641273,-150.00000001,0.00015288,2]